fUSD/lending_fUSD_20241104
["ID","MTS","AMOUNT","RATE_DAILY","PERIOD"]
[341312094,1730759120176,150.0,9e-05,2]
[341312095,1730759120198,150.0,9e-05,2]
[341312096,1730759120219,202.33600713,9e-05,2]
[341312097,1730759120245,2169.82160839,9e-05,2]
[341312098,1730759120640,178.56,8.047e-05,2]
[341312099,1730759130511,297.84275,0.000101,2]
[341312100,1730759130539,31502.60575166,0.000101,2]
[341312101,1730759135693,150.25607572,0.0001,2]
[341312102,1730759137577,150.0,9e-05,2]
[341312103,1730759156210,28364.3645437,6.94e-05,2]
[341312104,1730759193621,856.48337091,0.00015,2]
[341312114,1730759244773,200.0,0.000156,5]
[341312115,1730759246008,5079.53011554,0.0001305,2]
[341312116,1730759246063,246.91767995,0.000101,2]
[341312117,1730759246878,500.0,0.000157,5]
[341312118,1730759249038,800.0,0.000158,5]
[341312119,1730759251146,1000.0,0.000159,5]
[341312120,1730759283406,988.13722415,0.000145,3]
[341312121,1730759285655,1401509.56851884,0.00015,2]
[341312122,1730759285682,2000000.0,0.00015,2]
[341312123,1730759285706,2000000.0,0.00015,2]
[341312124,1730759285729,2466889.23834368,0.00015,2]
[341312125,1730759285755,2000000.0,0.00015,2]
[341312126,1730759285778,356707.59544506,0.00015,2]
[341312127,1730759294723,201.5997197,0.00015,2]
[341312128,1730759304502,400.0,0.000135,2]
[341312129,1730759304592,292.20707831,0.000125,2]
[341312130,1730759316038,14924.04948352,0.000129,2]
[341312131,1730759321742,212.63921494,0.0001,2]
[341312132,1730759326236,5089.0,0.00015,2]
[341312134,1730759327163,495.45902,0.00015,2]
[341312135,1730759328630,212.2871037,0.00013,2]
[341312156,1730759432035,-295.29464455,0.000151,2]
[341312157,1730759432044,-132.23535545,0.00015235,2]
[341312158,1730759432055,-419.84208867,0.00015235,2]
[341312159,1730759432064,-156.52,0.00015342,2]
[341312160,1730759432075,-2111.36634675,0.000154,2]
[341312161,1730759432126,-1039.14973622,0.000154,2]
[341312162,1730759432136,-7838.81062965,0.000154,2]
[341312180,1730759437885,-4864.27354875,0.000154,2]
[341312181,1730759437895,-500.0,0.00015973,2]
[341312183,1730759437904,-410.60768543,0.00015999,2]
[341312185,1730759437914,-188.36022971,0.00016,2]
[341312186,1730759437923,-11620.44373667,0.00016,2]
[341312187,1730759437935,-9476.14118342,0.00016,2]
[341312188,1730759437970,-3535.3613318,0.00016,2]
[341312189,1730759437980,-1000.0,0.00016,2]
[341312190,1730759437991,-838.12231162,0.00016,2]
[341312191,1730759438134,-177218.58853019,0.00016,2]
[341312192,1730759438146,-141653.71454104,0.00016,2]
[341312193,1730759438159,-592.37453589,0.00016,2]
[341312194,1730759438171,-134888.7428277,0.00016,2]
[341312195,1730759438212,-6900.42031397,0.00016,2]
[341312202,1730759440072,-392.01504888,0.00016,2]
[341312207,1730759443373,-17303.8652474,0.00016,2]
[341312227,1730759446018,-844.55738495,0.00016,2]
[341312322,1730759620149,-150.0,0.000159,2]
[341312323,1730759620571,-153.95,0.000159,2]
[341312324,1730759658852,-6.06121682,0.000159,2]
[341312325,1730759658875,-20632.93878318,0.00016,2]
[341312327,1730759873450,150.0,0.000251,60]
[341312328,1730759875939,193.5615,0.00012803,2]
[341312329,1730759918298,150.0,0.00023,30]
[341312330,1730760087763,-155.11,0.00015342,2]
[341312331,1730760087784,-17.34,0.00015424,2]
[341312338,1730760490923,-254.28,0.00015342,2]
[341312339,1730760490944,-155.11,0.00015424,2]
[341312340,1730760490966,-2266.654,0.0001568,2]
[341312341,1730760490986,-152.426,0.0001568,2]
[341312342,1730760491006,-500.0,0.00015973,2]
[341312343,1730760491030,-156.17487497,0.0001599,2]
[341312344,1730760491054,-287.4253798,0.00015999,2]
[341312345,1730760491076,-14227.92974523,0.00016,2]
[341312377,1730760560014,-300.0,0.00015988,2]
[341312378,1730760560042,-500.0,0.00015989,2]
[341312380,1730760616321,936.72061629,0.000251,120]
[341312390,1730760632104,-6479.35967242,0.00015989,2]
[341312391,1730760632116,-3143.34456168,0.00015989,2]
[341312392,1730760632125,-188265.20948808,0.00016,2]
[341312393,1730760632231,-3078.55932045,0.00016,2]
[341312394,1730760632243,-9110.77520033,0.00016,2]
[341312395,1730760632253,-83914.50799826,0.00016,2]
[341312396,1730760632305,-300.3,0.00016,2]
[341312397,1730760632316,-2806.916565,0.00016,2]
[341312398,1730760632371,-4561.03206032,0.00016,2]
[341312399,1730760632397,-3656.52207715,0.00016,2]
[341312400,1730760632409,-8526.1988586,0.00016,2]
[341312401,1730760632429,-23775.4087206,0.00016,2]
[341312402,1730760632455,-466.42930039,0.00016,2]
[341312434,1730760638234,-1454.24614478,0.00016,2]
[341312435,1730760638421,-75827.05888581,0.00016,2]
[341312436,1730760638451,-348.23005832,0.00016,2]
[341312440,1730760640489,-879.05617252,0.00016,2]
[341312441,1730760640504,-360.58490228,0.00016,2]
[341312457,1730760646235,-500.0,0.00015999,2]
[341312458,1730760646246,-349.43764853,0.00015999,2]
[341312459,1730760646436,-150.56235147,0.00015999,2]
[341312460,1730760646445,-153.26319858,0.00015999,2]
[341312461,1730760646454,-852.44124433,0.00016,2]
[341312463,1730760657769,1263.37189023,0.00015999,5]
[341312464,1730760712498,1264.3577258,0.00015999,5]
[341312465,1730760712529,1264.3577258,0.00015999,5]
[341312467,1730760780735,172.45,0.00014286,2]
[341312468,1730760947158,-12857.826549,0.00015187,2]
[341312472,1730761746409,150.0,0.00013126,2]
[341312473,1730761746430,150.0,0.00013126,2]
[341312474,1730761746452,150.0,0.00013126,2]
[341312475,1730761746478,340.24,0.00013126,2]
[341312476,1730761750147,150.0,0.00013997,2]
[341312477,1730761750169,27.834,0.00013997,2]
[341312478,1730761783616,122.166,0.00014984,2]
[341312479,1730761783639,150.0,0.00014984,2]
[341312480,1730761783663,200.17875713,0.00014984,2]
[341312481,1730761783684,150.0,0.00014984,2]
[341312482,1730761783707,69.12524287,0.00014984,2]
[341312492,1730761832269,-299.6900001,0.00015039,2]
[341312493,1730761832318,-220.3099999,0.00015039,2]
[341312494,1730761832329,-192.14,0.00015109,2]
[341312495,1730761832339,-2672.85409626,0.00015169,2]
[341312496,1730761832363,-915.94,0.00015169,2]
[341312497,1730761832414,-199.68590374,0.00015169,2]
[341312498,1730761832423,-861.84,0.00015212,2]
[341312499,1730761832432,-519.77,0.0001527,2]
[341312500,1730761832442,-300.0,0.0001534,2]
[341312501,1730761832451,-500.0,0.00015342,2]
[341312502,1730761832460,-356.89907696,0.00015342,2]
[341312503,1730761832469,-156.73,0.00015342,2]
[341312504,1730761832479,-156.48,0.00015342,2]
[341312505,1730761832488,-179.66,0.00015342,2]
[341312506,1730761832497,-790.24,0.0001539,2]
[341312507,1730761832506,-478.6950193,0.00015404,2]
[341312509,1730761832579,-1853.41867892,0.00015404,2]
[341312511,1730761832591,-1755.25,0.00015404,2]
[341312525,1730761838314,-471.51449782,0.0001527,2]
[341312526,1730761838326,-3699.92785534,0.0001527,2]
[341312527,1730761838338,-1483.21055598,0.0001527,2]
[341312528,1730761838347,-106.63378369,0.00015404,2]
[341312529,1730761838359,-3664.20891962,0.00015404,2]
[341312530,1730761838370,-6946.33385359,0.00015404,2]
[341312531,1730761838381,-1562.92844443,0.00015404,2]
[341312532,1730761838392,-500.0,0.00015404,2]
[341312533,1730761838403,-1473.00163474,0.00015404,2]
[341312534,1730761838414,-3202.5051332,0.00015404,2]
[341312535,1730761838535,-2258.60453251,0.00015404,2]
[341312536,1730761838544,-689.87,0.00015404,2]
[341312537,1730761838553,-156.46,0.00015457,2]
[341312538,1730761838563,-1111.12,0.00015457,2]
[341312539,1730761838572,-162.03,0.00015457,2]
[341312540,1730761838582,-1314.54,0.00015516,2]
[341312541,1730761838591,-722.64,0.00015527,2]
[341312542,1730761838600,-170.43,0.00015527,2]
[341312543,1730761838609,-250.0,0.00015573,2]
[341312544,1730761838619,-300.0,0.00015616,2]
[341312545,1730761838628,-13326.97677626,0.00015617,2]
[341312546,1730761838639,-901.02475246,0.00015617,2]
[341312607,1730761840449,-250.0,0.00015337,2]
[341312608,1730761840459,-9671.99847128,0.00015617,2]
[341312609,1730761840469,-622.97,0.00015634,2]
[341312610,1730761840479,-1813.324,0.0001568,2]
[341312611,1730761840489,-152.426,0.0001568,2]
[341312612,1730761840499,-2490.87,0.00015715,2]
[341312613,1730761840509,-414.1006808,0.00015716,2]
[341312614,1730761840519,-13050.24425874,0.0001584,2]
[341312615,1730761840529,-150.0,0.00015851,2]
[341312616,1730761840538,-150.99,0.00015877,2]
[341312617,1730761840548,-163.80562911,0.00015962,2]
[341312618,1730761840558,-228.58717887,0.00015962,2]
[341312619,1730761840567,-197.89,0.0001599,2]
[341312620,1730761840576,-197.89,0.0001599,2]
[341312621,1730761840586,-197.89,0.0001599,2]
[341312622,1730761840595,-197.89,0.0001599,2]
[341312623,1730761840605,-197.89,0.0001599,2]
[341312624,1730761840615,-166.88031281,0.0001599,2]
[341312625,1730761840624,-202.75567051,0.00015999,2]
[341312626,1730761840633,-186799.20241838,0.00016,2]
[341312627,1730761840645,-52936.25429013,0.00016,2]
[341312628,1730761840663,-315.3343428,0.00016,2]
[341312629,1730761840675,-319.196952,0.00016,2]
[341312630,1730761840740,-3279.94079203,0.00016,2]
[341312631,1730761840785,-204026.24353174,0.00016,2]
[341312632,1730761840796,-1362.7092578,0.00016,2]
[341312633,1730761840807,-3185.65302144,0.00016,2]
[341312634,1730761840831,-4469.04935516,0.00016,2]
[341312635,1730761840843,-7987.6482867,0.00016,2]
[341312636,1730761840854,-1244.09212786,0.00016,2]
[341312641,1730761843748,-860.80942383,0.00016,2]
[341312642,1730761843761,-396.57655836,0.00016,2]
[341312648,1730761846301,-3690.47141766,0.00016,2]
[341312650,1730761846436,-410.96820562,0.00016,2]
[341312651,1730761846447,-732.25601201,0.00016,2]
[341312652,1730761846585,-2874.13903805,0.00016,2]
[341312653,1730761846596,-834.50909407,0.00016,2]
[341312654,1730761906768,181.01,0.00025074,120]
[341312655,1730761994858,-150.0,0.00015787,2]
[341312656,1730761994899,-212.73454041,0.00015901,2]
[341312657,1730761994941,-163.80562911,0.00015901,2]
[341312658,1730761994984,-381.26612804,0.00015962,2]
[341312659,1730761995025,-300.0,0.00015988,2]
[341312660,1730761995069,-9454.2794856,0.00015989,2]
[341312661,1730761995111,-2931.0702102,0.00015989,2]
[341312662,1730761995153,-1122052.6641014,0.00016,2]
[341312663,1730762044316,-2159.35705006,0.000159,2]
[341312664,1730762053273,-2073.56754994,0.000159,2]
[341312665,1730762053313,-303.95,0.00015901,2]
[341312666,1730762053357,-11215.63844342,0.00016,2]
[341312667,1730762069239,-2159.35705006,0.00016,2]
[341312668,1730762256430,-8264.406978,0.00015989,2]
[341312669,1730762256474,-218.16049988,0.00016,2]
[341312670,1730762262453,2596.1073067,0.00015989,2]
[341312671,1730762272823,156.48,0.00015342,2]
[341312673,1730762289126,761.51,0.00014794,2]
[341312674,1730762395797,2159.35705006,0.00015999,2]
[341312675,1730762426217,1439.57136671,0.00015999,2]
[341312676,1730762436209,959.71424447,0.00015999,2]
[341312677,1730762456638,639.80949631,0.00015999,2]
[341312678,1730762493581,6366.01,0.00016,2]
[341312679,1730762506251,426.53966421,0.00015999,2]
[341312680,1730762526284,284.35977614,0.00015999,2]
[341312681,1730762556221,189.57318409,0.00015999,2]
[341312682,1730762566198,150.01,0.00015999,2]
[341312683,1730762576250,229.13636819,0.00015999,2]
[341312684,1730762607567,500.0,0.0001587,2]
[341312685,1730762607987,500.0,0.00015871,2]
[341312686,1730762608350,500.0,0.00015871,2]
[341312687,1730762708799,1673659.25406524,0.00016,2]
[341312688,1730762720234,268.76600713,9e-05,2]
[341312689,1730762720261,505.736,9e-05,2]
[341312690,1730762729874,297.84275,0.000101,2]
[341312691,1730762790366,723.43,0.00014679,2]
[341312717,1730763002586,198.74,0.00024792,120]
[341312741,1730763031504,-155.11,0.00015342,2]
[341312742,1730763031513,-276.890004,0.00015987,2]
[341312743,1730763031538,-23.109996,0.00015987,2]
[341312744,1730763031547,-937.94634452,0.00015988,2]
[341312745,1730763031558,-335.08950845,0.00015988,2]
[341312746,1730763031575,-276.52,0.00015988,2]
[341312747,1730763031703,-4277.03584135,0.00015988,2]
[341312748,1730763031717,-1364.25863641,0.00015988,2]
[341312749,1730763031736,-707.30072957,0.00015988,2]
[341312750,1730763031746,-1322.10636113,0.00015988,2]
[341312767,1730763037499,-1134.40102897,0.00015988,2]
[341312768,1730763037508,-343.13951529,0.00015995,2]
[341312769,1730763037518,-476.24803574,0.00015999,2]
[341312770,1730763037534,-23.75196426,0.00015999,2]
[341312771,1730763037543,-251.68670657,0.00015999,2]
[341312772,1730763037554,-350.45064851,0.00015999,2]
[341312773,1730763037563,-430.34935149,0.00016,2]
[341312774,1730763037577,-4466.45071388,0.00016,2]
[341312775,1730763037590,-1680.61684193,0.00016,2]
[341312776,1730763037673,-2385.17784728,0.00016,2]
[341312777,1730763037684,-860.95,0.00016,2]
[341312784,1730763039670,-2005.38597533,0.00016,2]
[341312793,1730763042566,-312.18450071,0.00016,2]
[341312794,1730763042605,-2488.98959997,0.00016,2]
[341312795,1730763042644,-12648.50162918,0.00016,2]
[341312797,1730763045782,-1732.75,0.00016,2]
[341312799,1730763209187,-1000.0,0.00015999,2]
[341312800,1730763209212,-300.0,0.00015999,2]
[341312801,1730763209239,-8700.0,0.00016,2]
[341312802,1730763274171,-10000.0,0.00016,2]
[341312803,1730763325207,-6665.556675,0.00015989,2]
[341312804,1730763325228,-2082.1958054,0.00015989,2]
[341312805,1730763325249,-300.0,0.00015999,2]
[341312806,1730763325270,-952.2475196,0.00016,2]
[341312807,1730763348529,-10000.0,0.00016,2]
[341312808,1730763362578,-300.0,0.00015999,2]
[341312809,1730763362604,-9700.0,0.00016,2]
[341312811,1730763464160,707.6,0.00014355,2]
[341312812,1730763958242,672.22,0.00013791,2]
[341312815,1730764103740,-178.48,0.00015142,2]
[341312816,1730764103766,-403.47,0.00015169,2]
[341312817,1730764103788,-13118.05,0.00015194,2]
[341312818,1730764137663,-245.71,0.00015141,2]
[341312819,1730764137685,-10781.95,0.00015194,2]
[341312821,1730764156455,-452.34,0.00015198,2]
[341312824,1730764231919,-547.66,0.00015198,2]
[341312825,1730764231928,-249.35,0.00015342,2]
[341312826,1730764231939,-156.54,0.00015342,2]
[341312827,1730764231948,-1215.0,0.00015381,2]
[341312828,1730764231958,-266.37,0.00015666,2]
[341312829,1730764231967,-1129.1895302,0.0001568,2]
[341312830,1730764231981,-308.18488916,0.0001568,2]
[341312831,1730764231995,-13.28458064,0.0001568,2]
[341312832,1730764232005,-152.42663132,0.0001568,2]
[341312833,1730764232015,-150.0,0.00015688,2]
[341312834,1730764232025,-675.53,0.00015717,2]
[341312835,1730764232035,-150.0,0.00015944,2]
[341312836,1730764232044,-308.82556377,0.00015955,2]
[341312837,1730764232053,-161.78311515,0.00015955,2]
[341312838,1730764232063,-160.15405834,0.00015973,2]
[341312839,1730764232072,-500.0,0.00015973,2]
[341312841,1730764232082,-20.14504718,0.00015988,2]
[341312843,1730764232094,-1577.43008158,0.00015988,2]
[341312845,1730764232106,-189.70545864,0.00015988,2]
[341312847,1730764232115,-2307.79824298,0.00015988,2]
[341312865,1730764237703,-3365.94883622,0.00015988,2]
[341312866,1730764237714,-369.60603213,0.00015999,2]
[341312867,1730764237725,-2320.55100078,0.00016,2]
[341312868,1730764237737,-1122.35208928,0.00016,2]
[341312869,1730764237748,-5340.98495427,0.00016,2]
[341312870,1730764237760,-338.26352533,0.00016,2]
[341312871,1730764237789,-462.45588772,0.00016,2]
[341312872,1730764237802,-721.27374421,0.00016,2]
[341312873,1730764237905,-1716.22619719,0.00016,2]
[341312874,1730764237917,-71741.82942573,0.00016,2]
[341312875,1730764237928,-5977.65179558,0.00016,2]
[341312876,1730764237940,-400.0,0.00016,2]
[341312877,1730764237951,-6491.56185658,0.00016,2]
[341312878,1730764238072,-522028.06572733,0.00016,2]
[341312879,1730764238081,-672.22,0.00016055,2]
[341312880,1730764238091,-1532.12,0.00016162,2]
[341312881,1730764238105,-999.99,0.00016162,2]
[341312882,1730764238114,-1532.12,0.00016171,2]
[341312883,1730764238124,-250.0,0.00016175,2]
[341312884,1730764238133,-1532.12,0.00016179,2]
[341312885,1730764238142,-1532.12,0.00016188,2]
[341312886,1730764238151,-1532.12,0.00016196,2]
[341312887,1730764238161,-1532.12,0.00016205,2]
[341312888,1730764238170,-1532.12,0.00016213,2]
[341312889,1730764238179,-1532.12,0.00016222,2]
[341312890,1730764238189,-1532.12,0.0001623,2]
[341312891,1730764238198,-1532.12,0.00016238,2]
[341312892,1730764238208,-223.9,0.00016245,2]
[341312893,1730764238218,-1532.12,0.00016247,2]
[341312894,1730764238227,-1532.12,0.00016255,2]
[341312895,1730764238237,-181.01,0.00016256,2]
[341312896,1730764238246,-1532.12,0.00016264,2]
[341312897,1730764238256,-1532.12,0.00016272,2]
[341312898,1730764238265,-1532.12,0.00016281,2]
[341312899,1730764238275,-1532.12,0.00016289,2]
[341312901,1730764238284,-1532.12,0.00016298,2]
[341312902,1730764238293,-1532.12,0.00016306,2]
[341312903,1730764238303,-1532.12,0.00016315,2]
[341312904,1730764238312,-1532.12,0.00016323,2]
[341312906,1730764238322,-198.74,0.00016528,2]
[341312908,1730764238332,-190.09,0.00016575,2]
[341312909,1730764238342,-845.32,0.00016576,2]
[341312910,1730764238354,-845.32,0.00016585,2]
[341312911,1730764238364,-164.5,0.00016589,2]
[341312912,1730764238373,-845.32,0.00016594,2]
[341312913,1730764238383,-845.32,0.00016603,2]
[341312914,1730764238392,-845.32,0.00016611,2]
[341312915,1730764238402,-845.32,0.0001662,2]
[341312916,1730764238411,-845.32,0.00016629,2]
[341312917,1730764238420,-845.32,0.00016637,2]
[341312918,1730764238430,-845.32,0.00016646,2]
[341312919,1730764238439,-845.32,0.00016655,2]
[341312920,1730764238449,-845.32,0.00016664,2]
[341312921,1730764238458,-845.32,0.00016672,2]
[341312922,1730764238468,-845.32,0.00016681,2]
[341312923,1730764238478,-845.32,0.0001669,2]
[341312924,1730764238487,-845.32,0.00016698,2]
[341312925,1730764238497,-845.32,0.00016707,2]
[341312926,1730764238506,-174.46,0.00016711,2]
[341312927,1730764238515,-158.06,0.00016712,2]
[341312928,1730764238525,-845.32,0.00016716,2]
[341312929,1730764238534,-845.32,0.00016725,2]
[341312930,1730764238543,-845.32,0.00016733,2]
[341312931,1730764238552,-168.23,0.00016741,2]
[341312932,1730764238561,-845.32,0.00016742,2]
[341312933,1730764238571,-174.46,0.00016744,2]
[341312934,1730764238580,-174.46,0.00016778,2]
[341312935,1730764238589,-174.46,0.00016811,2]
[341312936,1730764238600,-174.46,0.00016844,2]
[341312937,1730764238609,-174.46,0.00016878,2]
[341312938,1730764238618,-360.89,0.00016882,2]
[341312939,1730764238628,-360.89,0.00016891,2]
[341312940,1730764238637,-360.89,0.000169,2]
[341312941,1730764238651,-360.89,0.00016909,2]
[341312942,1730764238660,-360.89,0.00016918,2]
[341312943,1730764238669,-360.89,0.00016927,2]
[341312944,1730764238678,-360.89,0.00016935,2]
[341312945,1730764238688,-360.89,0.00016944,2]
[341312946,1730764238697,-360.89,0.00016953,2]
[341312947,1730764238706,-360.89,0.00016962,2]
[341312948,1730764238716,-360.89,0.00016971,2]
[341312949,1730764238727,-360.89,0.0001698,2]
[341312950,1730764238738,-360.89,0.00016989,2]
[341312951,1730764238748,-360.89,0.00016998,2]
[341312952,1730764238758,-360.89,0.00017006,2]
[341312953,1730764238767,-360.89,0.00017015,2]
[341312954,1730764238776,-360.89,0.00017024,2]
[341312955,1730764238786,-360.89,0.00017033,2]
[341312956,1730764238795,-360.89,0.00017042,2]
[341312957,1730764238804,-360.89,0.00017051,2]
[341312958,1730764238814,-223.9,0.00017058,2]
[341312959,1730764238824,-264.35,0.00017058,2]
[341312960,1730764238834,-1000.0,0.00017098,2]
[341312961,1730764238843,-170.79,0.00017341,2]
[341312962,1730764238856,-152.1295,0.00017709,2]
[341312963,1730764238870,-308.82556369,0.00017727,2]
[341312964,1730764238879,-223.9,0.0001787,2]
[341312965,1730764238888,-672.22,0.00018319,2]
[341312966,1730764238897,-150.0,0.00018386,5]
[341312967,1730764238906,-223.9,0.00018682,2]
[341312968,1730764238916,-8310.21566414,0.0001892,2]
[341312969,1730764238925,-1000.0,0.00018998,2]
[341312970,1730764238934,-223.9,0.00019494,2]
[341312971,1730764238943,-308.82556369,0.00019498,2]
[341312972,1730764238952,-1556.37,0.00019726,2]
[341312973,1730764238962,-1556.37,0.00019974,2]
[341312974,1730764238971,-200.0,0.0002,5]
[341312975,1730764238982,-3950.0,0.0002,2]
[341312976,1730764238992,-788.38833662,0.0002,2]
[341312977,1730764239002,-150369.26530064,0.0002,2]
[341312978,1730764239011,-415.0,0.000202,2]
[341312979,1730764239021,-1556.37,0.00020222,2]
[341312980,1730764239030,-1556.37,0.0002047,2]
[341312981,1730764239039,-672.22,0.00020583,2]
[341312982,1730764239049,-1556.37,0.00020718,2]
[341312983,1730764239058,-1000.0,0.00020898,2]
[341312984,1730764239067,-1556.37,0.00020966,2]
[341312985,1730764239077,-2030.0,0.00021,2]
[341312986,1730764239088,-250.0,0.00021,2]
[341312987,1730764239100,-170.79,0.00021021,2]
[341312988,1730764239110,-1556.37,0.00021214,2]
[341312989,1730764239119,-403.47,0.00021237,2]
[341312990,1730764239129,-308.82556369,0.0002127,2]
[341312991,1730764239139,-676.0,0.00021325,2]
[341312992,1730764239150,-1556.37,0.00021462,2]
[341312993,1730764239159,-249.35,0.00021745,2]
[341312994,1730764239169,-512.38525248,0.00021767,2]
[341312995,1730764239178,-501.16664927,0.00021767,2]
[341312996,1730764239187,-505.58198086,0.00021767,2]
[341312997,1730764239197,-500.0,0.00021767,2]
[341312998,1730764239206,-1500.0,0.000219,2]
[341312999,1730764239215,-173.67,0.00021918,2]
[341313000,1730764239225,-156.04,0.00021918,2]
[341313001,1730764239235,-194.16,0.00021918,2]
[341313002,1730764239244,-250.0,0.00021918,2]
[341313003,1730764239254,-512.76213776,0.0002195,2]
[341313004,1730764239263,-500.0,0.00021973,2]
[341313005,1730764239273,-152.29,0.0002198,15]
[341313006,1730764239283,-30743.48258967,0.00022,2]
[341313007,1730764239292,-161.95400044,0.00022175,2]
[341313008,1730764239302,-500.0,0.00022175,2]
[341313009,1730764239311,-501.94576789,0.00022175,2]
[341313010,1730764239321,-500.0,0.00022175,2]
[341313011,1730764239330,-502.39458746,0.00022175,2]
[341313012,1730764239339,-500.0,0.00022175,2]
[341313013,1730764239351,-345.31766604,0.00022175,2]
[341313014,1730764239360,-511.84542199,0.00022175,2]
[341313015,1730764239369,-1500.0,0.00022301,2]
[341313016,1730764239378,-150.0,0.0002234,2]
[341313017,1730764239388,-1500.0,0.00022391,2]
[341313018,1730764239397,-154.89063728,0.00022425,2]
[341313019,1730764239406,-1500.0,0.00022451,2]
[341313020,1730764239417,-150.0,0.00022586,2]
[341313021,1730764239428,-152.80288962,0.00022595,2]
[341313022,1730764239438,-150.0,0.00022599,2]
[341313023,1730764239448,-261.79383969,0.00022609,2]
[341313024,1730764239458,-150.0,0.00022691,2]
[341313025,1730764239468,-178.48,0.00022714,2]
[341313026,1730764239477,-150.0,0.00022719,2]
[341313027,1730764239486,-150.0,0.00022723,2]
[341313028,1730764239496,-150.0,0.00022723,2]
[341313029,1730764239505,-150.0,0.00022724,2]
[341313030,1730764239514,-150.0,0.00022728,2]
[341313031,1730764239524,-150.0,0.00022728,2]
[341313032,1730764239533,-150.0,0.00022729,2]
[341313033,1730764239543,-150.0,0.00022732,2]
[341313034,1730764239552,-150.0,0.00022735,2]
[341313035,1730764239561,-150.0,0.00022735,2]
[341313036,1730764239571,-150.0,0.00022738,2]
[341313037,1730764239580,-293.4923275,0.00022739,2]
[341313038,1730764239589,-150.0,0.00022741,2]
[341313039,1730764239601,-150.0,0.00022746,2]
[341313040,1730764239611,-150.0,0.00022747,2]
[341313041,1730764239620,-150.0,0.00022748,2]
[341313042,1730764239629,-150.0,0.00022752,2]
[341313043,1730764239639,-150.0,0.00022756,2]
[341313044,1730764239652,-150.0,0.00022756,2]
[341313045,1730764239662,-150.0,0.00022757,2]
[341313046,1730764239671,-150.0,0.00022758,2]
[341313047,1730764239680,-150.0,0.00022758,2]
[341313048,1730764239690,-150.0,0.00022761,2]
[341313049,1730764239699,-150.0,0.00022768,2]
[341313050,1730764239708,-150.0,0.00022772,2]
[341313051,1730764239719,-150.0,0.00022774,2]
[341313052,1730764239729,-150.0,0.00022775,2]
[341313053,1730764239739,-150.0,0.00022782,2]
[341313054,1730764239749,-150.0,0.00022789,2]
[341313055,1730764239759,-150.0,0.00022794,2]
[341313056,1730764239770,-150.0,0.00022794,2]
[341313057,1730764239780,-150.0,0.00022795,2]
[341313058,1730764239791,-1000.0,0.00022798,2]
[341313059,1730764239800,-150.0,0.00022798,2]
[341313060,1730764239811,-150.0,0.00022801,2]
[341313061,1730764239821,-996.77205123,0.00022805,2]
[341313062,1730764239831,-150.0,0.00022806,2]
[341313063,1730764239842,-150.0,0.00022807,2]
[341313064,1730764239855,-150.0,0.00022808,2]
[341313065,1730764239864,-150.0,0.00022809,2]
[341313066,1730764239873,-150.0,0.00022811,2]
[341313067,1730764239883,-150.0,0.00022811,2]
[341313068,1730764239893,-150.0,0.00022812,2]
[341313069,1730764239902,-150.0,0.00022818,2]
[341313070,1730764239912,-150.0,0.00022818,2]
[341313071,1730764239921,-150.0,0.00022821,2]
[341313072,1730764239930,-150.0,0.00022822,2]